Cogmind - Beta 13 @@@ ROGUE MODE // 2024.04.29 @ 05:04:22 Player: gigi283 Result: Self-destructed Performance ------------- Evolutions (1) 500 Regions Visited (3) 600 Robots Destroyed (43) 215 Value Destroyed (1164) 1164 Prototype IDs (2) 40 Alien Tech Used (0) 0 Bonus (0) 0 TOTAL SCORE: 2519 Bonus ------- None Cogmind --------- Core Integrity 161/400 Matter 290/300 Energy 125/125 System Corruption 0% Temperature Cool (0) Movement Core (400) Ox7 Location -9/Storage Parts ------- > --- POWER (2) -------- Light Ion Engine > --- PROPULSION (2) --- (None) > --- UTILITY (3) ------ Large Storage Unit Visual Processing Unit Sensor Array > --- WEAPON (2) ------- (None) > --- INVENTORY (15) --- Improved Treads Visual Processing Unit Mace Peak State ------------ > --- POWER ------------ Ion Engine Light Ion Engine > --- PROPULSION ------- Aluminum Leg Aluminum Leg > --- UTILITY ---------- Large Storage Unit Visual Processing Unit Shield Generator > --- WEAPON ----------- Particle Gun Heavy Assault Rifle > --- INVENTORY -------- Improved Treads Visual Processing Unit [Rating: 13] Favorites ----------- Power Ion Engine Engine Ion Engine Propulsion Aluminum Leg Treads Light Treads Leg Aluminum Leg Utility Large Storage Unit Device Sensor Array Storage Large Storage Unit Processor Targeting Computer Protection Light Armor Plating Weapon Beam Cannon Energy Gun Particle Gun Energy Cannon Beam Cannon Ballistic Gun Assault Rifle Ballistic Cannon Light Cannon Launcher Grenade Launcher Build | -11 -10 -9 -9 ------- Run | Yrd Mat Mat Sto Slots Evolved 2 | . . 2 . Power 1 | . . 1 . Propulsion . | . . . . Utility 1 | . . 1 . Weapon . | . . . . Parts Attached 39 | 6 10 21 2 Power 9 | 1 1 6 1 Engine 9 | 1 1 6 1 Core . | . . . . Reactor . | . . . . Propulsion 13 | 2 5 6 . Treads 5 | 2 . 3 . Leg 8 | . 5 3 . Wheel . | . . . . Hover . | . . . . Flight . | . . . . Utility 8 | 1 2 5 . Device 2 | . . 2 . Storage 2 | 1 1 . . Processor 2 | . 1 1 . Hackware . | . . . . Protection 2 | . . 2 . Artifact . | . . . . Weapon 9 | 2 2 4 1 Energy Gun 3 | 1 . 2 . Energy Cannon 1 | . 1 . . Ballistic Gun 3 | 1 . 2 . Ballistic Cannon 1 | . 1 . . Launcher 1 | . . . 1 Special Weapon . | . . . . Impact Weapon . | . . . . Slashing Weapon . | . . . . Piercing Weapon . | . . . . Special Melee Weapon . | . . . . Unidentified Prototypes . | . . . . Parts Lost 15 | . 1 8 6 Power 4 | . . 2 2 Propulsion 4 | . 1 1 2 Utility 2 | . . 2 . Weapon 5 | . . 3 2 Highest Loss Streak 5 | . 1 3 5 To Critical Strikes . | . . . . Average Slot Usage (%) 90 | . 95 89 82 Engine 17 | . 14 19 20 Treads 9 | . 18 6 . Leg 12 | . 8 15 11 Device 2 | . . 1 11 Storage 12 | . 14 11 11 Processor 10 | . 10 11 11 Protection 1 | . . 2 . Energy Gun 5 | . 3 6 10 Energy Cannon 6 | . 10 4 . Ballistic Gun 5 | . 8 5 . Ballistic Cannon 4 | . 5 4 . Launcher 1 | . . . 7 Naked Turns . | . . . . Heaviest Build 41 | 12 31 41 35 Greatest Support 40 | 40 40 40 20 Greatest Overweight (x) 6 | . 3 1 6 Average Overweight (x) . | . . . 2 Largest Inventory Capacity 15 | 8 15 15 15 Average Capacity 13 | 6 12 15 15 Most Carried 6 | 5 6 5 5 Average Carried 3 | 1 3 2 3 Final Capacity 15 | 8 15 15 15 Final Carried 4 | 2 3 4 3 Class Distribution -------------------- 56% | Mutant 43% | Scavenger-Mutant Dominant Class ---------------- Mutant | -10/Materials Scavenger-Mutant | -9/Materials Scavenger-Mutant | -9/Storage Resources | -11 -10 -9 -9 ----------- Run | Yrd Mat Mat Sto Matter Collected 979 | 191 355 433 . Remotely . | . . . . Salvage Created 1415 | . 513 902 . Parts 91 | . 33 58 . Haulers Intercepted . | . . . . Recyclers Shooed . | . . . . Parts Field Recycled . | . . . . Retrieved Matter . | . . . . Parts Self-Destructed . | . . . . Prevented . | . . . . Kills | -11 -10 -9 -9 ------- Run | Yrd Mat Mat Sto Combat Hostiles Destroyed 30 | . 11 19 . Guns 16 | . 4 12 . Cannons 14 | . 7 7 . Classes Destroyed 8 | . 4 4 . Builder 3 | . 2 1 . Recycler 2 | . . 2 . Mechanic 1 | . 1 . . Operator 1 | . . 1 . Watcher 6 | . 2 4 . Swarmer 6 | . . 6 . Grunt 20 | . 11 9 . Sentry 4 | . . 4 . Best Kill Streak 5 | . 5 4 . Combat Bots Only 3 | . 3 3 . Max Kills in Single Turn 1 | . 1 1 . Gunslinging . | . . . . Exploded . | . . . . Melee . | . . . . Uniques/NPCs Destroyed . | . . . . Combat | -11 -10 -9 -9 -------- Run | Yrd Mat Mat Sto Hostile Shots Fired 249 | . 68 165 16 Missed 52 | . 18 29 5 Damage Taken 2221 | . 652 1379 190 Core 387 | . 148 213 26 Absorbed by Shields 114 | . . 114 . Core Remaining (%) 70 | 100 40 . . Volleys Fired 182 | . 72 110 . Largest 2 | . 2 2 . Hottest 95 | . 95 95 . Shots Fired 274 | . 122 152 . Gun 164 | . 56 108 . Cannon 110 | . 66 44 . Launcher . | . . . . Special . | . . . . Kinetic 126 | . 58 68 . Thermal 148 | . 64 84 . Explosive . | . . . . Electromagnetic . | . . . . Robot Hit Streak 11 | . 7 11 . Robot Miss Streak 7 | . 7 7 . Penetration Max . | . . . . Secondary Targets 4 | . . 4 . Max Gunslinging Chain 1 | . . 1 . Shots Hit Robots 145 | . 61 84 . Core Hits 62 | . 25 37 . Critical Kills . | . . . . Critical Parts Destroyed . | . . . . Critical Strikes 4 | . 2 2 . Burn 4 | . 2 2 . Melee Attacks . | . . . . Impact . | . . . . Slashing . | . . . . Piercing . | . . . . Sneak Attacks . | . . . . Combat Hostiles . | . . . . Follow-up Attacks . | . . . . Damage Inflicted 2500 | . 1025 1475 . Guns 1317 | . 378 939 . Cannons 1174 | . 646 528 . Explosions . | . . . . Melee . | . . . . Ramming 9 | . 1 8 . Kinetic 1212 | . 525 687 . Thermal 1279 | . 499 780 . Explosive . | . . . . Electromagnetic . | . . . . Impact . | . . . . Slashing . | . . . . Piercing . | . . . . Highest Corruption 1 | . 1 . . Average Corruption 1 | . 1 . . Corruption Purged . | . . . . Corruption Blocked . | . . . . Effects 6 | . 6 . . Message Errors 2 | . 2 . . Matter Fused 2 | . 2 . . Heat Flow Errors 1 | . 1 . . Energy Discharges 1 | . 1 . . Overload Shots . | . . . . Overflow Damage 17 | . 7 10 . Projectiles 17 | . 7 10 . Explosions . | . . . . Melee . | . . . . Knockbacks 1 | . 1 . . Impact . | . . . . Kinetic 1 | . 1 . . Secondary . | . . . . Self-Inflicted Damage . | . . . . Shots . | . . . . Rammed 2 | . 1 1 . Targets Rammed 2 | . 1 1 . Kicked . | . . . . Crushed . | . . . . Highest Temperature 459 | . 267 459 . Average Temperature 104 | . 79 122 . Received Heat Transfer 945 | . 399 492 54 Effects 14 | . . 14 . Shutdowns 3 | . . 3 . Energy Bleed 2 | . . 2 . Interference 8 | . . 8 . Matter Decay 1 | . . 1 . Siege Activations . | . . . . Robots Corrupted . | . . . . Combat Hostiles . | . . . . Parts Fried . | . . . . Impact Corruptions . | . . . . Robots Melted . | . . . . Combat Hostiles . | . . . . Parts Melted 7 | . . 7 . Heat Transferred 3219 | . 1295 1924 . Parts Sabotaged . | . . . . Parts Stolen . | . . . . Parts Stripped . | . . . . Power Chain Reactions . | . . . . Alert | -11 -10 -9 -9 ------- Run | Yrd Mat Mat Sto Peak Influence 249 | . 226 249 101 Initial 101 | . . 42 101 Average 110 | . 78 148 88 Maximum Alert Level 1 | . 1 1 . Low Security (%) 86 | 100 90 78 100 Level 1 13 | . 9 21 . Level 2 . | . . . . Level 3 . | . . . . Level 4 . | . . . . Level 5 . | . . . . High Security . | . . . . Max Security . | . . . . Squads Dispatched 4 | . 3 1 . Investigation . | . . . . Extermination . | . . . . Reinforcement 4 | . 3 1 . Assault . | . . . . Garrison . | . . . . Intercept . | . . . . Searches Triggered . | . . . . Construction Impeded . | . . . . Haulers Reinforced . | . . . . Active Scanning Responses . | . . . . Cargo Convoy Interrupts . | . . . . Stealth | -11 -10 -9 -9 --------- Run | Yrd Mat Mat Sto Distress Signals 6 | . 2 3 1 Communications Jammed . | . . . . Distress Signals . | . . . . Times Spotted 66 | . 28 35 3 Peak Tracking Total 5 | . 5 4 3 Tactical Retreats 3 | . 2 1 . Traps | -11 -10 -9 -9 ------- Run | Yrd Mat Mat Sto Traps Triggered 3 | . 1 1 1 Indirectly . | . . . . Trap Hack Attempts . | . . . . Triggered . | . . . . Disarmed . | . . . . Reprogrammed . | . . . . Reused . | . . . . Traps Extracted . | . . . . Installed . | . . . . Triggered . | . . . . Machines | -11 -10 -9 -9 ---------- Run | Yrd Mat Mat Sto Machines Disabled 4 | . 1 3 . Max in Single Turn 1 | . 1 1 . Machines Repaired . | . . . . Machines Dismantled . | . . . . Machines Sabotaged . | . . . . Overloaded Fab Kills . | . . . . Hacking | -11 -10 -9 -9 --------- Run | Yrd Mat Mat Sto Machines Accessed 4 | . 3 1 . Terminals 3 | . 2 1 . Fabricators . | . . . . Repair Stations . | . . . . Recycling Units 1 | . 1 . . Scanalyzers . | . . . . Garrison Access . | . . . . Total Hacks 5 | . 3 2 . Successful 3 | . 2 1 . Failed 2 | . 1 1 . Catastrophic . | . . . . Database Lockouts . | . . . . Manual 5 | . 5 . . Terminals 4 | . 2 2 . Fabricators . | . . . . Repair Stations . | . . . . Recycling Units 1 | . 1 . . Scanalyzers . | . . . . Garrison Access . | . . . . Terminal Hacks 2 | . 1 1 . Record 1 | . 1 . . Prototype ID Bank 1 | . . 1 . Fabricator Hacks . | . . . . Repair Station Hacks . | . . . . Recycling Unit Hacks 1 | . 1 . . Process 1 | . 1 . . Scanalyzer . | . . . . Garrison Access Hacks . | . . . . Unauthorized Hacks . | . . . . Terminals . | . . . . Fabricators . | . . . . Repair Stations . | . . . . Recycling Units . | . . . . Scanalyzers . | . . . . Garrison Access . | . . . . Data Cores Recovered . | . . . . Used . | . . . . Hacking Detections 2 | . 1 1 . Full Trace Events . | . . . . Feedback Events . | . . . . Feedback Blocked . | . . . . Robot Schematics Acquired . | . . . . Robots Built . | . . . . Authchips . | . . . . Time . | . . . . Total Robot Build Rating . | . . . . Part Schematics Acquired . | . . . . Parts Built . | . . . . Authchips . | . . . . Time . | . . . . Total Part Build Rating . | . . . . Parts Repaired . | . . . . Time . | . . . . Parts Recycled . | . . . . Recycled Matter 9 | . 9 . . Retrieved Matter . | . . . . Retrieved Components . | . . . . Parts Scanalyzed . | . . . . Part Schematics Acquired . | . . . . Parts Damaged . | . . . . Bothacking | -11 -10 -9 -9 ------------ Run | Yrd Mat Mat Sto Used RIF Installer . | . . . . Robots Hacked . | . . . . Non-combat . | . . . . Combat . | . . . . Robot Hacks Applied . | . . . . Relay Couplers Released . | . . . . Fabnet Peak Effective % . | . . . . Robots Rewired . | . . . . Allies Hacked . | . . . . Hacks Repelled . | . . . . Allies | -11 -10 -9 -9 -------- Run | Yrd Mat Mat Sto Total Allies . | . . . . Largest Group . | . . . . Highest-Rated Group . | . . . . Highest-Rated Ally . | . . . . Total Orders . | . . . . Ally Attacks . | . . . . Total Damage . | . . . . Kills . | . . . . Allies Corrupted . | . . . . Allies Melted . | . . . . Intel | -11 -10 -9 -9 ------- Run | Yrd Mat Mat Sto Robot Analysis Total . | . . . . Derelict Logs Recovered . | . . . . Drone Launches . | . . . . Drone Recoveries . | . . . . Exploration | -11 -10 -9 -9 ------------- Run | Yrd Mat Mat Sto Turns Passed 2872 | 77 1039 1360 396 Spaces Moved 1140 | 42 473 508 117 Core 4 | 3 . . 1 Treads 489 | 39 329 121 . Legs 647 | . 144 387 116 Wheels . | . . . . Hover . | . . . . Flight . | . . . . Fastest Speed 50 | 50 160 160 190 Average Speed 198 | 152 169 200 323 Slowest Speed 350 | 160 330 240 350 Overloaded Moves . | . . . . Propulsion Burnouts . | . . . . Robots Hopped . | . . . . Cave-ins Triggered . | . . . . Exploration Rate (%) 39 | 4 86 47 20 Regions Visited 3 Branch Regions 1 Pre-discovered Areas . | . . . . Known Exits Taken . | . . . . Unknown Exits Taken 3 | 1 1 1 . Scrap Searched . | . . . . Spaces Dug . | . . . . Terrain Destroyed . | . . . . Melee . | . . . . Projectile . | . . . . AOE . | . . . . Terrain Rammed . | . . . . Walls Destroyed . | . . . . Machines Disabled . | . . . . Actions | -11 -10 -9 -9 --------- Run | Yrd Mat Mat Sto Total 1477 | 55 588 700 134 Wait 60 | . 16 30 14 Move 1137 | 41 472 507 117 Hop . | . . . . Pick Up 41 | 8 10 22 1 Fast Attach . | . . . . Attach 30 | 6 5 17 2 Detach . | . . . . Swap 9 | . 5 4 . Drop 16 | . 7 9 . Fire 182 | . 72 110 . Melee . | . . . . Ram . | . . . . Kick . | . . . . Crush 2 | . 1 1 . Escape Stasis . | . . . . Rewire . | . . . . Trap . | . . . . Miscellaneous . | . . . . Route ------- -11/Scrapyard -10/Materials (discovered 3 exits: *Mat x3) -9/Materials (discovered 2 exits: [*Min] / *Sto) -9/Storage History --------- Turn | Location | Event 8 | -11/Scrapyard | Discovered new exit (range 14) 78 | -11/Scrapyard | Entered Materials 307 | -10/Materials | Build established: Mutant 317 | -10/Materials | Discovered new exit (range 16) 669 | -10/Materials | Discovered new exit (range 11) 947 | -10/Materials | Core integrity fell below 50% 1104 | -10/Materials | Discovered new exit (range 7) 1117 | -10/Materials | Entered another Materials area 1117 | -9/Materials | Evolved 2 slots: Power x1, Utility x1 1359 | -9/Materials | Discovered new exit (range 10) 1695 | -9/Materials | Build established: Scavenger-Mutant 1782 | -9/Materials | Lost 3 parts (2p1n) 2362 | -9/Materials | Discovered new exit (range 9) 2393 | -9/Materials | Core integrity fell below 50% 2477 | -9/Materials | Entered Storage 2873 | -9/Storage | Self-destructed Last Messages --------------- Dropped Shield Generator. Acquired 12 matter. Acquired 57 matter. LOCATION=UNKNOWN GOAL=ESCAPE Triggered Explosive Trap. An explosion rips through the floor. Aluminum Leg destroyed. Connecting with Terminal... Current location identified: Storage Acquired Grenade Launcher. K-01 Serf collects debris. K-01 Serf cleans the Transport Mainframe. W-16 Scout sends out distress signal. Particle Gun destroyed. Ion Engine destroyed. Lgt. Ion Engine destroyed. Critical hit (Burn: +37). Grenade Launcher destroyed. Aluminum Leg destroyed. Map ----- +----------------------------------------------------+ | | | | | | | | | | | | | | | | | ?????????????????????????????????????????????????? | | ?????????????????????????????????????????????????? | | ?????????????????????????????????????????????????? | | ?????????????????????????????????????????????????? | | ???????######????????????????????????????????????? | | ????#### # ###########################??????????? | | ????# ????????? | | ????# ????????? | | ????# ? ????????? | | ????### ########### ########?????????????#??? | | ??????# # # #??????????????????? #### | | ????### !! # !# #????????#####?????? ? | | ????#"" !! # # #????????# " #????? ?? | | ????#"T ! # # #????????#"G"#????? #??? | | ????#"" # + #????#####" "##### #???? | | ????### # # k#????# # #???? | | ??????# # """ # ###### + +???? | | ??????# # """ # a @ /a # #???? | | ??????# # """ #a ###### """" """" # #???? | | ??????########## """ # #????# """" """" #? #???? | | ???????????????# """?# #????# """" """" #? #???? | | ???????????????# # #????# """" """" #??#???? | | ???????????????####### #????#############??????? | | ?????????????????????#k #???????????????????????? | | ?????????????????????# #???????????????????????? | | ?????????????????????# ? #???????????????????????? | | ?????????????????????#? ?#???????????????????????? | | ?????????????????????# ? #???????????????????????? | | ?????????????????????# #???????????????????????? | | ?????????????????????+ #???????????????????????? | | ?????????????????????# #???????????????????????? | | ?????????????????????# #???????????????????????? | | ?????????????????????# #???????????????????????? | | ?????????????????????# #???????????????????????? | | ?????????????????????# #???????????????????????? | | ?????????????????????# #???????????????????????? | | ?????????????????????# ???????????????????????? | | ?????????????????????+ ???????????????????????? | | ?????????????????????# ???????????????????????? | | ?????????????????????### ???????????????????????? | | ???????????????????????? ???????????????????????? | | ???????????????????????? ???????????????????????? | +----------------------------------------------------+ Best States ------------- Heat Dissipation 28 Energy Generation 17 Energy Capacity 415 Matter Stores 300 Matter Capacity 300 Sight Range 18 Robot Scan Range 14 Terrain Scan Density 10 Armor Coverage 150 Evasion (%) 40 Targeting Accuracy 5 Recoil Reduction 2 Item Schematics ----------------- None Robot Schematics ------------------ None Fabricated ------------ Nothing Alien Tech Used ----------------- None Achievements -------------- None Challenges ------------ None Game ------ Seed SmartbombThermalBlade Manual? 0 Play Time 00:34:03 Cumulative 6.4 hours Start 2024.04.29 @ 04:31:59 End 2024.04.29 @ 05:04:22 Sessions 1 Manual Loads 0 Difficulty Rogue Special Mode None Game No. 10 Rogue 10 Adventurer 0 Explorer 0 Win Type - Total 0 Types 0/0/0/0/0/0/0/0/0 Lore% 5 Gallery% 9 Achievement% 7 Wizard Run 0 Options --------- Layout 1 ASCII 0 Keyboard 0 Movement Mouse Keybinds 0 Fullscreen 2 Font 24/Smallcaps Map View 50x35 Zoom Use 0% Tactical HUD 0 Map Filters NONE Filters NONE Steam 1 RUN: e6e9d81b-caad-4c39-b8af-aaa6fb987425